Workbook

Sheet Gas Natural
A2: Gas Natural
B5: Composición
D6: % Volumen | E6: Fracción volumen renormalizado
B7: Metano | C7: CH4 | D7: 84.6 | E7: =D7/$D$26 -> 0.7550200803
B8: Etano | C8: C2H6 | D8: 6.4 | E8: =D8/$D$26 -> 0.05711735832
B9: Etileno | C9: C2H4 | D9: 0.8 | E9: =D9/$D$26 -> 0.00713966979
B10: Propano | C10: C3H8 | D10: 0.5 | E10: 0.004462293619 | H10: yi
B11: Isobutano | C11: C4H10 | D11: 1.2 | E11: 0.01070950469 | G11: CH4 | H11: =E7 -> 0.7550200803
B12: n-butano | C12: C4H10 | D12: 1.4 | E12: 0.01249442213 | G12: C2H6 | H12: =E8 -> 0.05711735832
B13: Isopentano | C13: C5H12 | D13: 0.4 | E13: 0.003569834895 | G13: H2O | H13: =E24 -> 0
B14: n-pentano | C14: C5H12 | D14: 0.2 | E14: 0.001784917448 | G14: CO2 | H14: =E18 -> 0.04462293619
B15: Hexano | C15: C6H14 | D15: 0.4 | E15: 0.003569834895 | G15: O2 | H15: 0
B16: Heptano | C16: C7H16 | D16: 0.1 | E16: 0.0008924587238 | G16: N2 | H16: =E22 -> 0.08924587238
B17: Hidrógeno | C17: H2 | D17: 0.2 | E17: 0.001784917448
B18: Dióxido de carbono | C18: CO2 | D18: 5 | E18: 0.04462293619
B19: Monóxido de carbono | C19: CO | D19: 0.1 | E19: 0.0008924587238
B20: Helio | C20: He | D20: 0.5 | E20: 0.004462293619
B21: Sulfuro de hidrogeno | C21: HS | D21: 0.2 | E21: 0.001784917448
B22: Nitrogeno | C22: N2 | D22: 10 | E22: 0.08924587238
B23: Argon | C23: Ar | D23: 0.05 | E23: 0.0004462293619
B24: Agua | C24: H2O | D24: 0 | E24: 0
B25: No hidrocarburos | D25: 0 | E25: 0
B26: Total | D26: =SUM(D7:D25) -> 112.05

Sheet Combustion
A2: Temperatua de flama adiabática
B4: Propieadades termodinámicas
B5: To [K] | C5: =25+273.15 -> 298.15
B6: R [J mol-1 K-1] | C6: 8.314
B7: R [kJ mol-1 K-1] | C7: =C6/1000 -> 0.008314
I8: Δhf o | J8: Δgf o
A9: No. | B9: Formula | C9: Name | D9: a0 | E9: a1 x 103 | F9: a2 x 105 | G9: a3 x 108 | H9: a4 x 1011 | I9: kJ / mol | J9: kJ / mol
A10: 26 | B10: CH4 | C10: methane | D10: 4.568 | E10: -8.975 | F10: 3.631 | G10: -3.407 | H10: 1.091 | I10: -74.52 | J10: -50.45
A11: 65 | B11: C2H6 | C11: ethane | D11: 4.178 | E11: -4.427 | F11: 5.66 | G11: -6.651 | H11: 2.487 | I11: -83.82 | J11: -31.86
A12: 440 | B12: H2O | C12: water | D12: 4.395 | E12: -4.186 | F12: 1.405 | G12: -1.564 | H12: 0.632 | I12: -241.81 | J12: -228.42
A13: 31 | B13: CO2 | C13: carbon dioxide | D13: 3.259 | E13: 1.356 | F13: 1.502 | G13: -2.374 | H13: 1.056 | I13: -393.51 | J13: -394.38
A14: 460 | B14: O2 | C14: oxygen | D14: 3.63 | E14: -1.794 | F14: 0.658 | G14: -0.601 | H14: 0.179 | I14: 0 | J14: 0
A15: 455 | B15: N2 | C15: nitrogen | D15: 3.539 | E15: -0.261 | F15: 0.007 | G15: 0.157 | H15: -0.099 | I15: 0 | J15: 0
C21: Coeficientes Estequiométricos | E21: Reacción 1 | G21: Reacción 2
C22: Reacción 1 | D22: Reacción 2 | E22: α i1 Δhfi [kJ mol-1] | F22: α i1 Δhgi [kJ mol-1] | G22: α i2 Δhfi [kJ mol-1] | H22: α i2 Δhgi [kJ mol-1]
B23: CH4 | C23: -1 | D23: 0 | E23: =C23*I10 -> 74.52 | F23: =C23*J10 -> 50.45 | G23: =D23*I10 -> 0 | H23: =D23*J10 -> 0
B24: C2H6 | C24: 0 | D24: -1 | E24: =C24*I11 -> 0 | F24: =C24*J11 -> 0 | G24: =D24*I11 -> 83.82 | H24: =D24*J11 -> 31.86
B25: H2O | C25: 2 | D25: 3 | E25: =C25*I12 -> -483.62 | F25: =C25*J12 -> -456.84 | G25: =D25*I12 -> -725.43 | H25: =D25*J12 -> -685.26
B26: CO2 | C26: 1 | D26: 2 | E26: =C26*I13 -> -393.51 | F26: =C26*J13 -> -394.38 | G26: =D26*I13 -> -787.02 | H26: =D26*J13 -> -788.76
B27: O2 | C27: -2 | D27: -3.5 | E27: =C27*I14 -> 0 | F27: =C27*J14 -> 0 | G27: =D27*I14 -> 0 | H27: =D27*J14 -> 0
B28: N2 | C28: 0 | D28: 0 | E28: =C28*I15 -> 0 | F28: =C28*J15 -> 0 | G28: =D28*I15 -> 0 | H28: =D28*J15 -> 0
C30: Δhr [kJ mol-1] | D30: Δgr [kJ mol-1] | E30: ln K
B31: Reacción 1 | C31: =SUM(E23:E28) -> -802.61 | D31: =SUM(F23:F28) -> -800.77 | E31: =-D31/($C$7*C5) -> 323.0449531
B32: Reacción 2 | C32: =SUM(G23:G28) -> -1428.63 | D32: =SUM(H23:H28) -> -1442.16 | E32: =-D32/($C$7*C6) -> 20863.79973
B35: Balance de Materia en el Mezclador
B37: Aire (Corriente A) | E37: Combustible (corriente B) | H37: Quemador
B38: T [°C] | C38: 25 | E38: T [°C] | F38: 25 | H38: Reactor
B39: P[bar] | C39: 1 | E39: P[bar] | F39: 1 | H39: %Conversión CH4 | I39: 100
B40: %Exceso de aire | C40: 20 | E40: Base de cálculo | F40: 100 | H40: %Conversión C2H6 | I40: 100
B41: yN2 | C41: 0.79 | E41: CH4 | F41: 0.7550200803 | H41: Avance reacción 1 (ξ1) | I41: =-I39/100*F40*F41/C23 -> 75.50200803
B42: yO2 | C42: 0.21 | E42: C2H6 | F42: 0.05711735832 | H42: Avance reacción 2 (ξ2) | I42: =-I40/100*F42*F40/D24 -> 5.711735832
B43: yH2O | C43: 0 | E43: H2O | F43: 0 | H43: ξ1 Δhr1 | I43: =I41*C31 -> -60598.66667
B44: NaireEo | C44: =(-C27*F41-D27*F42)*F40/C42 -> 814.2623404 | E44: CO2 | F44: 0.04462293619 | H44: ξ2 Δhr2 | I44: =I42*C32 -> -8159.957162
B45: NaireE | C45: =C44*(1+C40/100) -> 977.1148084 | E45: O2 | F45: 0 | H45: Σ ξj Δhrj | I45: =SUM(I43:I44) -> -68758.62383
E46: N2 | F46: 0.08924587238
B57: Corriente C=E (entrada al reactor)
C58: Flujo | D58: yi | E58: yi a0 | F58: yi a1 x 103 | G58: yi a2 x 105 | H58: yi a3 x 108 | I58: yi a4 x 1011
B59: CH4 | C59: =F40*F41 -> 75.50200803 | D59: =C59/$C$65 -> 0.07134080231 | E59: =$D59*D10 -> 0.325884785 | F59: =$D59*E10 -> -0.6402837008 | G59: =$D59*F10 -> 0.2590384532 | H59: =$D59*G10 -> -0.2430581135 | I59: =$D59*H10 -> 0.07783281532
B60: C2H6 | C60: =F40*F42 -> 5.711735832 | D60: =C60/$C$65 -> 0.005396940128 | E60: =$D60*D11 -> 0.02254841585 | F60: =$D60*E11 -> -0.02389225395 | G60: =$D60*F11 -> 0.03054668112 | H60: =$D60*G11 -> -0.03589504879 | I60: =$D60*H11 -> 0.0134221901
B61: H2O | C61: =C45*C43 -> 0 | D61: 0 | E61: =$D61*D12 -> 0 | F61: =$D61*E12 -> 0 | G61: =$D61*F12 -> 0 | H61: =$D61*G12 -> 0 | I61: =$D61*H12 -> 0
B62: CO2 | C62: =0 -> 0 | D62: 0 | E62: =$D62*D13 -> 0 | F62: =$D62*E13 -> 0 | G62: =$D62*F13 -> 0 | H62: =$D62*G13 -> 0 | I62: =$D62*H13 -> 0
B63: O2 | C63: =C42*C45 -> 205.1941098 | D63: 0.1938850741 | E63: =$D63*D14 -> 0.7038028189 | F63: =$D63*E14 -> -0.3478298229 | G63: =$D63*F14 -> 0.1275763787 | H63: =$D63*G14 -> -0.1165249295 | I63: =$D63*H14 -> 0.03470542826
B64: N2 | C64: =C45*C41 -> 771.9206987 | D64: 0.7293771835 | E64: =$D64*D15 -> 2.581265852 | F64: =$D64*E15 -> -0.1903674449 | G64: =$D64*F15 -> 0.005105640284 | H64: =$D64*G15 -> 0.1145122178 | I64: =$D64*H15 -> -0.07220834116
B65: Total | C65: =SUM(C59:C64) -> 1058.328552 | D65: =SUM(D59:D64) -> 1 | E65: =SUM(E59:E64) -> 3.633501872 | F65: =SUM(F59:F64) -> -1.202373223 | G65: =SUM(G59:G64) -> 0.4222671534 | H65: =SUM(H59:H64) -> -0.280965874 | I65: =SUM(I59:I64) -> 0.05375209252
E66: =E65 -> 3.633501872 | F66: =F65*0.001 -> -0.001202373223 | G66: =G65/10^5 -> 4.222671534e-06 | H66: =H65/10^8 -> -2.80965874e-09 | I66: =I65/10^(11) -> 5.375209252e-13
B71: Corriente S (salida del quemador)
C72: Flujo | D72: yi | E72: yi a0 | F72: yi a1 x 103 | G72: yi a2 x 105 | H72: yi a3 x 108 | I72: yi a4 x 1011
B73: CH4 | C73: =(1-I39/100)*F40*F41 -> 0 | D73: =C73/$C$79 -> 0 | E73: =$D73*D10 -> 0 | F73: =$D73*E10 -> 0 | G73: =$D73*F10 -> 0 | H73: =$D73*G10 -> 0 | I73: =$D73*H10 -> 0
B74: C2H6 | C74: =(1-I40/100)*F42*F40 -> 0 | D74: 0 | E74: =$D74*D11 -> 0 | F74: =$D74*E11 -> 0 | G74: =$D74*F11 -> 0 | H74: =$D74*G11 -> 0 | I74: =$D74*H11 -> 0
B75: H2O | C75: =C61+C25*I41+D25*I42 -> 168.1392236 | D75: 0.1584448663 | E75: =$D75*D12 -> 0.6963651873 | F75: =$D75*E12 -> -0.6632502103 | G75: =$D75*F12 -> 0.2226150371 | H75: =$D75*G12 -> -0.2478077709 | I75: =$D75*H12 -> 0.1001371555
B76: CO2 | C76: =C62+C26*I41+D26*I42 -> 86.9254797 | D76: 0.08191364106 | E76: =$D76*D13 -> 0.2669565562 | F76: =$D76*E13 -> 0.1110748973 | G76: =$D76*F13 -> 0.1230342889 | H76: =$D76*G13 -> -0.1944629839 | I76: =$D76*H13 -> 0.08650080496
B77: O2 | C77: =C63+C27*I41+D27*I42 -> 34.1990183 | D77: 0.03222721484 | E77: =$D77*D14 -> 0.1169847899 | F77: =$D77*E14 -> -0.05781562342 | G77: =$D77*F14 -> 0.02120550736 | H77: =$D77*G14 -> -0.01936855612 | I77: =$D77*H14 -> 0.005768671456
B78: N2 | C78: =C64 -> 771.9206987 | D78: 0.7274142778 | E78: =$D78*D15 -> 2.574319129 | F78: =$D78*E15 -> -0.1898551265 | G78: =$D78*F15 -> 0.005091899945 | H78: =$D78*G15 -> 0.1142040416 | I78: =$D78*H15 -> -0.0720140135
B79: Total | C79: =SUM(C73:C78) -> 1061.18442 | D79: 1 | E79: 3.654625663 | F79: -0.7998460629 | G79: 0.3719467333 | H79: -0.3474352692 | I79: 0.1203926184
E80: =E79 -> 3.654625663 | F80: =F79*0.001 -> -0.0007998460629 | G80: =G79/10^5 -> 3.719467333e-06 | H80: =H79/10^8 -> -3.474352692e-09 | I80: =I79/10^(11) -> 1.203926184e-12
B84: Entrada ( E ) | E84: Salida (S) | H84: Reacción
B85: T [K] | C85: 298.15 | E85: T [K] | F85: =E94 -> 500 | H85: Σ ξj Δhrj | I85: =I45 -> -68758.62383
B86: To [K] | C86: =C5 -> 298.15 | E86: To [K] | F86: =C5 -> 298.15
B87: <cp#> [kJ/mol/K] | C87: =Mcp(C85,C86,E66:I66,C7) -> 0.02976547963 | E87: <cp#> [kJ/mol/K] | F87: =Mcp(F85,F86,E80:I80,C7) -> 0.03109391299
B88: N<cp#> | C88: =C65*C87 -> 31.50165696 | E88: N<cp#> | F88: =C79*F87 -> 32.99637602
B89: N<cp#>(T-To) | C89: =C65*C87*(C85-C86) -> 0 | E89: N<cp#>(T-To) | F89: =C79*F87*(F85-F86) -> 6660.318501
E91: Balance de energía (ec.10) | F91: =I85+F89-C89 -> -62098.30533
E93: T* | F93: Tc (ec. 11)
E94: 500 | F94: =(C89-I45)/F88+F86 -> 2381.973502
